bitfinex/quotes_ETHUSD_20251119
["timestamp","ask_amount","ask_price","bid_price","bid_amount"]
[1763576420948,0.90699264,2903.2,2901.0,0.0995]
[1763576421196,2.11774483,2903.2,2901.7,0.4543]
[1763576421361,1.20780382,2903.1,2901.7,0.4543]
[1763576421566,0.4783,2903.1,2901.7,0.4543]
[1763576421803,1.63944483,2903.2,2901.0,0.0995]
[1763576421804,0.90699264,2902.5,2901.0,0.0995]
[1763576421952,0.90699264,2902.5,2899.7,8.11906438]
[1763576421953,0.183,2901.8,2899.7,0.001]
[1763576422159,0.183,2901.8,2900.3,0.1928]
[1763576422568,0.72950382,2902.0,2900.4,0.4543]
[1763576422861,0.4783,2902.1,2900.4,0.4543]
[1763576423079,0.4783,2902.1,2900.5,0.405504]
[1763576423453,0.183,2902.2,2900.7,0.405504]
[1763576423698,0.6613,2902.5,2900.7,0.405504]
[1763576423862,0.6613,2902.5,2900.9,0.405504]
[1763576424160,0.183,2902.5,2900.9,0.405504]
[1763576424366,0.183,2902.5,2901.0,0.4543]
[1763576424367,0.4783,2902.4,2901.0,0.4543]
[1763576424763,0.4783,2902.4,2900.3,0.1928]
[1763576424764,0.4783,2902.4,2900.6,0.4543]
[1763576425151,0.94914493,2902.4,2900.6,0.4543]
[1763576425566,0.4783,2902.3,2900.6,0.4543]
[1763576426177,0.90699264,2901.8,2900.1,0.9140888]
[1763576426389,0.90994101,2901.6,2900.1,0.4152888]
[1763576426564,0.90994101,2901.5,2900.1,0.1225]
[1763576426764,0.4761,2901.5,2900.1,0.1225]
[1763576426964,0.4761,2901.5,2900.1,0.6213]
[1763576427180,0.72855522,2901.6,2900.1,0.6213]
[1763576427356,0.72835889,2901.9,2900.2,1.16707324]
[1763576427558,0.4761,2901.8,2900.3,0.405504]
[1763576427757,0.4761,2901.8,2900.3,0.904304]
[1763576427960,0.72835889,2902.1,2900.4,0.034478]
[1763576428199,0.90994101,2903.2,2900.5,0.405504]
[1763576428361,0.4761,2902.8,2900.7,0.405504]
[1763576428896,0.4761,2902.8,2900.9,0.405504]
[1763576429198,0.72825778,2903.1,2901.1,0.405504]
[1763576429356,0.91125778,2903.3,2901.1,0.405504]
[1763576429556,0.91125778,2903.3,2901.3,0.405504]
[1763576429756,1.38604101,2903.8,2901.3,0.405504]
[1763576430060,1.38604101,2903.7,2901.5,0.405504]
[1763576430613,0.90699264,2903.3,2901.3,0.4988]
[1763576430757,0.90994101,2903.2,2901.3,0.4988]
[1763576430957,0.90994101,2903.2,2901.4,0.405504]
[1763576430958,1.19896854,2903.2,2901.4,0.405504]
[1763576431171,0.72799985,2903.2,2901.4,0.405504]
[1763576431389,8.27330126,2903.4,2901.5,0.4988]
[1763576431390,0.4761,2903.1,2901.5,0.4988]
[1763576432296,0.90994101,2903.5,2901.5,0.4988]
[1763576432297,0.4761,2903.5,2901.6,0.405504]
[1763576432461,0.4761,2903.5,2901.8,0.405504]
[1763576432660,0.72775917,2903.6,2902.0,0.405504]
[1763576432864,0.72775917,2903.8,2902.0,0.405504]
[1763576433099,0.4761,2903.9,2902.2,0.405504]
[1763576433314,0.4761,2903.8,2902.2,0.405504]
[1763576433474,0.1905,2902.3,2902.0,0.382304]
[1763576433675,0.47084493,2902.2,2900.3,0.4988]
[1763576433890,0.72747544,2902.2,2900.3,0.4988]
[1763576434214,1.20357544,2902.2,2900.3,0.4988]
[1763576434425,0.1905,2902.3,2900.4,6.8956006]
[1763576434583,0.1905,2902.3,2900.5,1.23824006]
[1763576435089,0.1905,2902.3,2900.6,0.4988]
[1763576435590,0.1905,2902.3,2900.7,0.405504]
[1763576435786,8.74940126,2902.2,2900.1,0.1225]
[1763576436022,0.90994101,2901.9,2900.2,0.4988]
[1763576436176,1.8288071,2901.8,2900.2,0.4774188]
[1763576436506,0.90994101,2901.5,2900.1,0.1225]
[1763576436711,0.51355536,2901.5,2900.1,0.1225]
[1763576436931,1.39496609,2901.4,2900.1,0.1225]
[1763576437218,0.72797038,2901.3,2901.0,0.001]
[1763576437504,0.88141073,2901.4,2901.0,0.001]
[1763576437505,1.20407038,2901.4,2901.0,0.001]
[1763576437706,0.4761,2901.4,2901.0,0.001]
[1763576438111,0.4775,2901.4,2901.0,0.001]
[1763576439084,0.90699264,2901.2,2901.0,0.001]
[1763576439284,1.63496302,2901.2,2901.0,0.001]
[1763576439539,0.4775,2901.1,2901.0,0.001]
[1763576439685,1.20547038,2901.1,2901.0,0.001]
[1763576440086,1.71902574,2901.1,2901.0,0.001]
[1763576440510,3.53595939,2901.1,2901.0,0.001]
[1763576440739,0.90699264,2900.7,2900.0,4.15288801]
[1763576440939,0.91104239,2900.6,2900.0,4.15288801]
[1763576441106,1.38854239,2900.6,2900.0,4.15288801]
[1763576441302,2.11651277,2900.6,2900.0,4.15288801]
[1763576441529,0.1658,2900.8,2900.0,4.56817681]
[1763576442041,0.4775,2901.1,2900.2,0.405504]
[1763576442042,0.72873173,2901.1,2900.2,0.405504]
[1763576442255,1.21472319,2901.6,2900.2,0.405504]
[1763576442256,0.91104239,2901.6,2900.2,0.405504]
[1763576442405,1.63986349,2901.9,2900.4,3.85321396]
[1763576442609,0.9207211,2901.9,2900.4,0.405504]
[1763576442841,0.9207211,2901.9,2900.3,0.461]
[1763576442842,1.43427646,2901.9,2900.5,0.461]
[1763576443051,1.43427646,2901.9,2900.0,4.56817681]
[1763576443052,8.15493272,2901.0,2900.0,4.15288801]
[1763576443351,2.30521374,2900.9,2900.0,4.15288801]
[1763576443509,0.7288211,2900.8,2900.0,4.15288801]
[1763576443858,0.51355536,2900.7,2900.0,4.15288801]
[1763576444148,1.24237646,2900.7,2900.0,4.15288801]
[1763576444312,1.2063211,2900.8,2900.0,4.15288801]
[1763576444944,0.7288211,2900.8,2900.0,4.56817681]
[1763576445143,0.1919,2900.9,2900.0,4.56817681]
[1763576445347,3.44613879,2901.8,2900.1,0.866504]
[1763576445348,0.72863515,2901.2,2900.1,0.866504]
[1763576445662,8.15493272,2901.6,2900.1,0.866504]
[1763576445824,0.4775,2901.8,2900.1,0.866504]
[1763576445825,0.4775,2901.8,2900.3,0.405504]
[1763576446448,1.20629304,2901.8,2900.5,0.405504]
[1763576446618,0.1919,2901.9,2900.5,3.85317854]
[1763576446619,0.92080394,2901.9,2900.5,3.85317854]
[1763576446816,0.1919,2901.9,2900.7,0.405504]
[1763576447021,0.1919,2901.9,2900.8,0.1684]
[1763576447648,0.1919,2901.9,2900.8,0.6294]
[1763576447943,1.10294239,2902.6,2900.9,0.866504]
[1763576448157,0.92096031,2902.6,2900.9,0.866504]
[1763576448366,0.72906031,2902.8,2901.1,0.405504]
[1763576448545,0.91104239,2902.9,2901.3,0.405504]
[1763576448748,0.51355536,2902.9,2901.3,0.405504]
[1763576448929,0.72906031,2902.9,2901.5,0.405504]
[1763576449139,0.72906031,2902.9,2900.3,0.1814]
[1763576449140,0.1919,2901.3,2900.3,0.1814]
[1763576449837,0.69882826,2901.3,2900.3,0.1814]
[1763576450140,1.41532233,2901.2,2900.0,4.15288801]
[1763576450341,0.90699264,2901.1,2900.0,4.15288801]
[1763576450568,2.11355295,2901.1,2900.0,4.15288801]
[1763576450785,0.72906031,2901.0,2900.0,4.15288801]
[1763576451069,0.72906031,2901.0,2900.1,0.461]
[1763576451275,0.72906031,2901.2,2900.2,0.405504]
[1763576451437,0.1919,2901.3,2900.2,0.405504]
[1763576451632,0.1919,2901.3,2900.2,0.461]
[1763576451863,0.92096031,2901.3,2900.0,4.56817681]
[1763576452096,0.90699264,2901.0,2900.0,4.15288801]
[1763576452251,1.63605295,2901.0,2900.0,4.15288801]
[1763576452446,2.14298121,2901.0,2900.0,4.15288801]
[1763576452646,1.23598857,2900.9,2900.0,4.15288801]
[1763576452852,0.43089407,2900.8,2900.0,4.15288801]
[1763576453049,0.98442826,2900.8,2900.0,4.15288801]
[1763576453278,1.84481497,2900.7,2900.0,4.15288801]
[1763576453492,0.72906031,2900.6,2900.0,4.15288801]
[1763576453856,0.70545536,2901.3,2900.0,4.15288801]
[1763576453857,0.50692826,2901.1,2900.0,4.56817681]
[1763576454055,0.50692826,2901.0,2900.0,4.15288801]
[1763576454251,1.4139209,2901.0,2900.0,4.15288801]
[1763576454458,1.2366348,2900.9,2900.0,4.15288801]
[1763576454696,1.64074893,2901.1,2900.0,4.15288801]
[1763576454877,1.2366348,2901.1,2900.1,0.405504]
[1763576455080,0.1919,2901.3,2900.1,0.461]
[1763576455081,0.72970654,2901.2,2900.1,0.461]
[1763576455284,0.72970654,2901.2,2900.0,4.15288801]
[1763576455285,0.1919,2900.2,2900.0,4.15288801]
[1763576455764,0.4775,2900.1,2900.0,4.15288801]
[1763576456361,0.69882826,2900.2,2900.0,4.15288801]
[1763576456570,0.91104239,2900.7,2900.0,4.56817681]
[1763576456871,0.72951169,2900.8,2900.0,4.15288801]
[1763576457076,0.4775,2900.9,2900.0,4.15288801]
[1763576457681,1.20701169,2900.9,2900.0,4.15288801]
[1763576457855,0.002,2901.0,2900.0,4.15288801]
[1763576457856,0.73151169,2901.0,2900.0,4.15288801]
[1763576458055,1.23843995,2901.0,2900.0,4.15288801]
[1763576458257,0.50892826,2901.0,2900.0,4.15288801]
[1763576458457,1.23843995,2901.0,2900.0,4.61427681]
[1763576458883,0.50692826,2900.9,2900.0,4.61427681]
[1763576459277,0.73151169,2901.0,2900.0,4.61427681]
[1763576459662,0.73151169,2901.0,2900.1,0.866504]
[1763576459861,0.002,2901.0,2900.1,0.866504]
[1763576460061,0.002,2901.0,2900.3,0.405504]
[1763576460481,0.002,2901.0,2900.9,0.1814]
[1763576460965,0.002,2901.0,2900.9,0.6424]
[1763576462577,1.01834493,2901.0,2899.7,0.6434]
[1763576462884,1.01834493,2901.0,2899.9,0.461]
[1763576462885,0.54084493,2901.0,2899.9,0.461]
[1763576463086,0.73192612,2901.0,2900.1,0.866504]
[1763576463291,0.73192612,2901.0,2900.3,0.405504]
[1763576463292,0.002,2901.0,2900.3,0.405504]
[1763576463663,0.002,2901.0,2900.2,0.405504]
[1763576463891,0.56709493,2900.9,2900.2,0.405504]
[1763576464198,0.56709493,2900.9,2900.0,4.61427681]
[1763576464377,0.56709493,2900.9,2900.1,0.50752768]
[1763576464777,0.91304239,2901.0,2900.8,0.1814]
[1763576464778,0.73192612,2901.0,2900.8,0.1814]
[1763576464991,0.002,2901.3,2900.9,0.405504]
[1763576465192,0.91104239,2902.6,2901.1,0.405504]
[1763576465506,0.91104239,2903.1,2902.2,0.461]
[1763576465671,0.73221032,2903.2,2902.2,0.461]
[1763576466204,0.91104239,2903.1,2902.0,0.1814]
[1763576466508,2.42443351,2903.3,2902.0,0.6424]
[1763576466509,1.64325271,2903.2,2902.0,0.6424]
[1763576466716,0.91104239,2903.2,2902.0,0.6424]
[1763576467137,1.38854239,2903.3,2902.1,0.461]
[1763576467281,0.73221032,2903.2,2902.1,0.461]
[1763576467486,0.73221032,2903.2,2902.2,0.405504]
[1763576467686,0.91104239,2904.0,2903.2,0.405504]
[1763576467921,0.4766,2904.7,2903.2,0.405504]
[1763576467922,1.09484239,2904.6,2903.2,0.899404]
[1763576468083,0.1838,2904.6,2903.2,0.899404]
[1763576468489,0.1838,2904.6,2902.0,13.96499748]
[1763576468490,0.1838,2903.9,2902.0,3.62729937]
[1763576468728,0.4786,2903.8,2902.5,0.4939]
[1763576468897,0.98185536,2903.8,2902.1,0.899404]
[1763576469101,0.4766,2903.7,2902.1,0.405504]
[1763576469327,0.97985536,2903.7,2902.0,0.1814]
[1763576469638,0.1838,2902.1,2901.0,0.1871]
[1763576469795,0.7316668,2902.5,2901.1,0.4939]
[1763576469997,0.91104239,2903.1,2901.1,0.4939]
[1763576470226,3.52772483,2903.2,2901.2,0.405504]
[1763576470439,0.72983444,2903.1,2901.1,0.4939]
[1763576470641,1.20643444,2903.1,2901.1,0.4939]
[1763576470936,1.20643444,2903.1,2901.2,6.89369914]
[1763576471131,1.20643444,2903.1,2901.4,0.405504]
[1763576471428,1.20643444,2903.1,2901.3,0.73875991]
[1763576471429,0.4766,2903.0,2901.3,0.4939]
[1763576471633,0.4766,2903.0,2900.5,3.44762811]
[1763576471634,0.1674,2901.4,2900.4,0.1871]
[1763576472136,1.01218869,2901.6,2900.4,0.681]
[1763576472137,0.4766,2901.6,2900.4,0.681]
[1763576472298,0.4766,2901.5,2900.4,0.1871]
[1763576473142,0.1838,2902.1,2900.5,0.405504]
[1763576473736,1.38764239,2902.8,2900.7,0.405504]
[1763576473919,1.38764239,2902.8,2900.9,0.405504]
[1763576474122,0.72992433,2902.7,2900.9,0.405504]
[1763576474323,1.20652433,2902.8,2901.1,0.405504]
[1763576474522,0.1674,2902.9,2901.1,0.406504]
[1763576474735,0.72992433,2903.2,2901.4,6.89322396]
[1763576475039,1.01218869,2903.3,2901.5,1.6292768]
[1763576475243,0.4786,2903.3,2901.5,1.6292768]
[1763576475412,0.4786,2903.3,2901.7,0.405504]
[1763576475732,0.4786,2903.3,2901.8,0.6731]
[1763576475896,0.4786,2903.3,2901.9,0.43996418]
[1763576476234,0.4786,2903.3,2901.9,0.899404]
[1763576476436,0.002,2903.3,2902.1,0.405504]
[1763576476840,0.002,2903.3,2903.2,0.1871]
[1763576477005,0.002,2903.3,2903.2,0.681]
[1763576477404,0.002,2903.3,2903.2,1.086504]
[1763576478138,0.002,2903.6,2903.2,1.086504]
[1763576478363,0.002,2903.8,2903.2,1.086504]
[1763576478364,0.002,2903.8,2903.3,0.899404]
[1763576478703,0.002,2903.8,2903.5,0.405504]
[1763576479010,0.002,2903.8,2903.2,0.1871]
[1763576479011,0.002,2903.8,2903.6,0.4939]
[1763576479212,0.002,2903.8,2903.7,0.4939]
[1763576479424,0.002,2903.8,2902.9,0.405504]
[1763576479939,0.002,2903.8,2903.1,0.405504]
[1763576480742,0.44781988,2904.4,2903.1,0.405504]
[1763576480942,0.44781988,2904.4,2902.9,0.405504]
[1763576481526,0.53558869,2904.7,2903.1,0.405504]
[1763576482155,1.26360796,2904.7,2903.3,0.405504]
[1763576482363,0.53558869,2904.7,2903.3,0.405504]
[1763576482552,0.90699264,2904.8,2903.3,0.405504]
[1763576482553,0.53558869,2904.6,2903.3,0.405504]
[1763576482751,1.01218869,2904.6,2903.3,0.405504]
[1763576483062,0.4766,2904.6,2903.3,0.4939]
[1763576483450,0.4766,2904.6,2903.3,0.92828926]
[1763576483761,0.90699264,2904.3,2902.8,0.1871]
[1763576484068,0.89223721,2904.2,2902.9,0.123]
[1763576484363,1.01218869,2904.2,2902.9,0.123]
[1763576484658,0.53558869,2904.3,2902.9,0.6169]
[1763576484863,0.4766,2904.2,2902.9,0.6169]
[1763576485926,0.4766,2904.2,2902.9,1.0418061]
[1763576486166,0.53558869,2904.1,2903.0,0.03444712]
[1763576486333,0.53558869,2904.1,2902.4,0.319]
[1763576486528,0.4795,2904.0,2902.4,0.319]
[1763576486745,1.01508869,2904.0,2902.5,0.4601]
[1763576486930,1.17218869,2903.9,2902.5,0.405504]
[1763576487463,0.4795,2903.8,2902.6,0.4601]
[1763576487664,0.69268869,2903.9,2902.7,0.405504]
[1763576487863,1.42018768,2903.9,2902.7,0.865604]
[1763576488049,0.69268869,2903.9,2902.7,0.865604]
[1763576488379,0.69268869,2903.9,2902.1,0.70019392]
[1763576488380,0.1913,2902.8,2901.5,0.4601]
[1763576488534,0.56417202,2902.7,2901.5,0.5831]
[1763576488938,0.56417202,2902.7,2901.5,0.123]
[1763576489340,0.90699264,2903.2,2901.7,0.405504]
[1763576489579,2.16493722,2903.2,2901.8,0.43119784]
[1763576489781,0.72992256,2903.1,2901.7,0.4601]
[1763576489984,1.20942256,2903.1,2901.7,0.4601]
[1763576490187,1.25794458,2903.1,2901.7,0.4601]
[1763576490389,0.4795,2903.6,2901.8,0.405504]
[1763576490851,0.4795,2903.6,2902.2,0.405504]
[1763576491047,1.00752202,2903.6,2902.3,0.50812846]
[1763576491279,0.73018442,2903.6,2902.4,0.405504]
[1763576491473,0.4795,2903.8,2902.6,0.405504]
[1763576491857,1.51140448,2903.8,2902.7,0.123]
[1763576492183,0.73066811,2903.7,2902.7,0.123]
[1763576492587,1.71405057,2903.8,2902.7,0.123]
[1763576493094,1.71405057,2903.8,2902.8,0.405504]
[1763576493253,1.21016811,2903.8,2902.7,0.123]
[1763576493449,0.4795,2903.8,2902.8,0.405504]
[1763576493788,0.4795,2903.8,2902.8,0.865604]
[1763576493789,0.73066811,2903.8,2902.8,0.865604]
[1763576493951,0.1913,2903.9,2902.9,1.19337744]
[1763576494148,0.1913,2903.9,2902.1,3.44575083]
[1763576494149,1.22320448,2903.9,2901.9,0.196]
[1763576494360,1.22320448,2903.9,2902.5,0.405504]
[1763576494361,2.08572485,2903.9,2902.5,0.405504]
[1763576494590,6.8678891,2903.4,2902.8,0.001]
[1763576494790,2.19923252,2903.3,2902.8,0.001]
[1763576494981,0.91104239,2903.2,2902.8,0.001]
[1763576495183,0.55752202,2903.1,2902.8,0.001]
[1763576495380,1.03702202,2903.1,2902.8,0.001]
[1763576495570,1.76769013,2903.1,2902.8,0.001]
[1763576495760,0.1913,2902.9,2902.8,0.001]
[1763576496097,0.73066811,2903.1,2902.8,0.001]
[1763576496257,1.64317122,2903.4,2902.8,0.001]
[1763576496464,0.73212883,2903.3,2902.8,0.001]
[1763576496789,1.64317122,2903.5,2902.8,0.001]
[1763576497185,0.73212883,2903.4,2902.8,0.001]
[1763576497499,0.73212883,2903.5,2902.8,0.4611]
[1763576497664,1.41492485,2903.8,2902.8,0.4611]
[1763576497665,0.91104239,2903.8,2902.8,0.4611]
[1763576498005,1.21472319,2904.0,2902.8,0.4611]
[1763576498006,2.55016386,2904.0,2902.9,0.405504]
[1763576498168,0.73212883,2903.9,2903.0,0.123]
[1763576498496,0.73212883,2904.2,2903.0,0.6107]
[1763576498699,1.64317122,2904.4,2903.2,0.405504]
[1763576498874,0.73212883,2904.3,2903.2,0.405504]
[1763576500823,8.25694232,2904.5,2903.5,0.405504]
[1763576501104,0.91104239,2903.9,2902.8,0.001]
[1763576501595,1.64317122,2904.0,2902.9,0.6107]
[1763576501799,1.64317122,2904.0,2902.9,0.123]
[1763576502100,1.46856441,2904.0,2903.0,0.1867]
[1763576502302,1.46856441,2904.0,2902.8,0.001]
[1763576502303,0.91104239,2903.6,2902.8,0.001]
[1763576502504,0.91104239,2903.4,2902.8,0.001]
[1763576502668,1.38624239,2903.4,2902.8,0.001]
[1763576502998,1.64317122,2903.3,2902.8,0.001]
[1763576503166,0.73212883,2903.2,2902.8,0.42056]
[1763576503365,0.73212883,2903.3,2902.8,0.42056]
[1763576503597,0.91104239,2903.5,2902.8,0.42056]
[1763576503808,0.91104239,2903.6,2902.8,0.42056]
[1763576504297,0.91104239,2903.5,2902.8,0.42056]
[1763576504469,0.91104239,2903.6,2902.9,0.405504]
[1763576504666,0.91104239,2903.7,2902.9,0.405504]
[1763576505002,0.91104239,2903.8,2903.1,0.405504]
[1763576505185,1.64317122,2903.9,2903.1,0.405504]
[1763576505496,0.91104239,2903.9,2903.2,0.1241]
[1763576505700,1.64317122,2903.9,2903.2,0.1241]
[1763576505914,0.91104239,2903.9,2903.2,0.1241]
[1763576506218,0.918201,2903.9,2903.2,1.07030041]
[1763576506425,1.6527618,2904.0,2903.3,0.405504]
[1763576506573,1.395401,2904.7,2903.3,0.893204]
[1763576506774,1.395401,2904.7,2903.5,0.405504]
[1763576506775,0.918201,2904.5,2903.5,0.405504]
[1763576507076,0.73478542,2904.6,2903.4,0.123]
[1763576507077,1.65298642,2904.6,2903.7,0.405504]
[1763576507284,0.73478542,2904.5,2903.7,0.405504]
[1763576507484,0.002,2904.7,2903.9,0.405504]
[1763576511100,0.002,2906.2,2905.4,0.123]
[1763576511288,0.002,2906.2,2905.2,0.1847]
[1763576511289,0.002,2906.2,2905.2,0.5663]
[1763576511486,0.002,2906.2,2904.9,0.17980914]
[1763576511487,0.1911,2906.1,2904.9,0.17980914]
[1763576511691,0.1911,2906.1,2905.0,0.123]
[1763576511922,0.4752,2906.0,2904.9,0.17980914]
[1763576512123,0.1911,2906.1,2904.9,0.17980914]
[1763576512492,0.4752,2906.0,2904.9,0.17980914]
[1763576514758,0.4752,2906.0,2905.0,0.405504]
[1763576515926,0.4752,2906.0,2905.1,0.123]
[1763576516297,0.4752,2906.0,2904.9,0.17980914]
[1763576516841,0.4752,2906.0,2904.6,0.123]
[1763576517398,0.4752,2906.0,2904.7,0.405504]
[1763576517627,0.4752,2906.0,2904.9,0.405504]
[1763576517801,0.4752,2906.0,2905.0,0.72906596]
[1763576518003,0.002,2906.1,2905.1,0.405504]
[1763576518196,0.002,2906.1,2905.1,0.787104]
[1763576518397,0.002,2906.1,2905.3,0.405504]
[1763576518705,0.002,2906.1,2905.5,0.405504]
[1763576521246,0.4752,2905.8,2904.2,0.0933]
[1763576521451,0.4752,2905.8,2904.3,0.3816]
[1763576521805,0.4752,2905.8,2904.5,0.405504]
[1763576522816,0.4752,2905.8,2904.7,0.405504]
[1763576524053,0.4752,2905.8,2904.8,0.39713127]
[1763576524344,0.1931,2906.1,2904.9,0.405504]
[1763576524852,0.6683,2906.1,2904.9,0.405504]
[1763576525257,0.4752,2906.0,2904.9,0.405504]
[1763576525464,0.4752,2906.0,2905.0,0.123]
[1763576525615,0.1931,2906.1,2905.1,3.84772629]
[1763576525814,0.1931,2906.1,2905.3,0.405504]
[1763576526258,0.002,2906.1,2905.3,0.405504]
[1763576526617,0.002,2906.1,2905.2,0.39707263]
[1763576526818,0.4772,2906.1,2905.2,0.123]
[1763576527214,0.4772,2906.1,2904.1,0.90699264]
[1763576527215,0.4772,2906.1,2903.8,3.44373487]
[1763576527427,0.1911,2905.3,2904.1,0.0933]
[1763576527623,0.6663,2905.6,2904.2,3.56628902]
[1763576527822,0.1911,2905.6,2904.2,7.00957804]
[1763576528171,0.1911,2905.6,2904.3,1.09280269]
[1763576528368,0.4916,2905.5,2904.3,0.405504]
[1763576528671,0.4916,2905.5,2904.5,0.405504]
[1763576528827,0.1911,2905.6,2904.5,0.405504]
[1763576529027,0.6776,2905.9,2904.7,0.405504]
[1763576529234,0.6776,2905.9,2904.5,0.787304]
[1763576529436,0.002,2906.1,2904.6,0.787304]
[1763576529655,0.188,2906.1,2904.8,0.405504]
[1763576529831,0.002,2906.1,2905.0,0.405504]
[1763576530033,0.188,2906.1,2905.2,0.405504]
[1763576530238,0.188,2906.1,2905.3,0.123]
[1763576530756,0.188,2906.1,2904.9,0.72908966]
[1763576530757,0.4916,2906.0,2904.9,0.72908966]
[1763576530946,0.4916,2906.0,2905.0,0.123]
[1763576531148,0.002,2906.1,2905.2,0.405504]
[1763576531332,0.002,2906.1,2905.4,0.405504]
[1763576531535,0.002,2906.1,2905.6,0.405504]
[1763576531739,0.002,2906.1,2905.7,0.123]
[1763576532052,0.188,2906.1,2905.3,0.405504]
[1763576532252,0.188,2906.1,2902.3,0.3459]
[1763576532253,0.4916,2906.0,2904.0,0.3818]
[1763576532552,8.25694232,2905.3,2904.1,0.001]
[1763576532752,2.39224077,2905.2,2904.1,0.001]
[1763576533048,2.88384077,2905.2,2904.1,0.001]
[1763576533235,0.97007337,2905.2,2904.1,0.001]
[1763576533435,1.4987387,2905.1,2904.1,0.001]
[1763576533637,2.08783542,2905.0,2904.1,0.001]
[1763576533865,1.46167337,2905.0,2904.1,0.001]
[1763576534162,0.4916,2904.9,2904.1,0.001]
[1763576534360,0.93799097,2904.9,2904.1,0.001]
[1763576534560,0.5236824,2904.8,2904.1,0.001]
[1763576534863,0.90699264,2904.6,2904.1,0.001]
[1763576535064,0.97007337,2904.5,2904.1,0.001]
[1763576535253,1.46167337,2904.5,2904.1,0.001]
[1763576535456,0.4916,2904.4,2904.1,0.001]
[1763576535642,0.93799097,2904.4,2904.1,0.001]
[1763576535848,1.46167337,2904.4,2904.1,0.001]
[1763576536076,1.46167337,2904.3,2904.1,0.001]
[1763576536287,1.64187019,2904.2,2904.1,0.001]
[1763576536468,0.93799097,2904.2,2904.1,0.001]
[1763576536777,1.0152824,2904.2,2904.1,0.001]
[1763576537435,0.4916,2904.2,2904.1,0.001]
[1763576537640,0.44639097,2904.7,2904.1,0.001]
[1763576537868,3.96518842,2905.8,2904.1,0.0943]
[1763576538186,0.4916,2905.1,2904.1,0.001]
[1763576538736,0.5236824,2905.0,2904.1,0.001]
[1763576538933,8.25694232,2904.6,2904.1,0.001]
[1763576539137,2.61276411,2904.5,2904.1,0.001]
[1763576539348,2.81705973,2904.5,2904.1,0.001]
[1763576539633,0.4916,2904.4,2904.1,0.001]
[1763576539845,0.48553649,2904.3,2904.1,0.001]
[1763576540276,0.4916,2904.2,2904.1,0.001]
[1763576540990,0.4916,2904.7,2904.1,0.001]
[1763576541190,0.4916,2904.8,2904.1,0.001]
[1763576541658,0.4916,2905.6,2904.3,0.405504]
[1763576541855,0.4916,2905.6,2904.1,0.001]
[1763576541856,0.9440813,2905.5,2904.1,0.001]
[1763576542052,2.55906939,2905.5,2904.1,0.001]
[1763576542259,0.4544813,2906.0,2904.2,0.405504]
[1763576542465,0.4916,2905.8,2904.3,0.39431283]
[1763576543450,0.90699264,2905.5,2904.1,0.001]
[1763576543670,0.4916,2905.4,2904.1,0.0943]
[1763576544187,0.4916,2905.4,2904.2,0.405504]
[1763576544574,0.73516993,2905.8,2904.4,0.405504]
[1763576544775,0.73738655,2906.0,2904.6,0.405504]
[1763576544988,0.002,2906.0,2904.6,0.405504]
[1763576545168,0.002,2906.0,2904.8,0.405504]
[1763576545701,0.002,2906.0,2905.1,3.44222229]
[1763576545886,0.002,2906.0,2905.3,0.405504]
[1763576546103,0.002,2906.0,2905.3,0.528504]
[1763576546266,0.002,2906.0,2904.9,0.3818]
[1763576546468,0.4541,2906.0,2904.8,0.123]
[1763576546808,0.95723696,2905.9,2904.1,0.0943]
[1763576547297,0.95723696,2905.9,2904.1,6.98110457]
[1763576547298,0.38776656,2905.8,2904.1,6.98110457]
[1763576547463,0.4521,2905.8,2904.3,0.405504]
[1763576547662,0.4521,2905.8,2904.1,0.0943]
[1763576547663,0.46658899,2905.8,2904.1,0.0943]
[1763576547903,0.002,2906.0,2904.2,1.41179264]
[1763576548106,0.002,2906.0,2904.3,0.405504]
[1763576548402,0.002,2906.0,2904.5,0.405504]
[1763576548775,0.002,2906.0,2904.7,0.405504]
[1763576549163,0.002,2906.0,2904.9,0.405504]
[1763576549607,0.002,2906.0,2904.9,0.3818]
[1763576549974,0.002,2906.0,2905.1,0.405504]
[1763576550282,0.002,2906.0,2905.3,0.405504]
[1763576550671,0.002,2906.0,2905.2,0.2471]
[1763576550870,0.4541,2906.0,2905.0,0.405504]
[1763576551907,0.002,2906.0,2905.2,8.66244632]
[1763576552094,0.002,2906.0,2905.3,1.24864686]
[1763576552271,0.002,2906.0,2905.4,0.405504]
[1763576552470,0.002,2906.0,2905.4,0.787304]
[1763576552709,0.002,2906.0,2905.3,0.123]
[1763576552710,0.002,2906.0,2904.7,0.1241]
[1763576552886,0.56836399,2905.9,2904.7,3.56674485]
[1763576553081,0.56836399,2905.9,2904.8,0.405504]
[1763576553694,0.56836399,2905.9,2904.7,0.5059]
[1763576554002,1.15055712,2905.9,2904.7,0.5059]
[1763576554179,0.56836399,2905.9,2904.8,0.405504]
[1763576554383,0.4541,2906.0,2904.8,0.405504]
[1763576554585,0.002,2906.0,2904.9,0.405504]
[1763576554973,0.002,2906.0,2904.8,0.405504]
[1763576555174,0.5418155,2906.0,2904.9,0.123]
[1763576555371,0.002,2906.0,2904.9,0.123]
[1763576555574,0.002,2906.0,2904.8,0.405504]
[1763576555793,0.4521,2905.9,2904.8,0.405504]
[1763576556004,117.1057647,2905.4,2904.8,0.405504]
[1763576556903,117.1057647,2905.4,2904.8,3.84800142]
[1763576557104,117.1057647,2905.4,2904.9,0.39721014]
[1763576557477,117.1057647,2905.4,2905.0,0.405504]
[1763576557897,117.1057647,2905.4,2904.7,0.1241]
[1763576557898,117.1057647,2905.4,2904.8,0.405504]
[1763576558289,117.1057647,2905.4,2904.8,0.787304]
[1763576558495,117.1057647,2905.4,2905.3,0.476504]
[1763576559605,117.1057647,2905.4,2905.3,0.858304]
[1763576559805,117.1057647,2905.4,2905.3,0.476504]